fUST/lending_fUST_20250108
["ID","MTS","AMOUNT","RATE_DAILY","PERIOD"]
[348047510,1736279444304,-500.0,0.00019178,2]
[348047511,1736279444314,-500.0,0.00019178,2]
[348047512,1736279444324,-500.0,0.00019178,2]
[348047513,1736279444333,-500.0,0.00019178,2]
[348047514,1736279444343,-500.0,0.00019178,2]
[348047515,1736279444353,-500.0,0.00019178,2]
[348047516,1736279444363,-500.0,0.00019178,2]
[348047517,1736279444373,-500.0,0.00019178,2]
[348047518,1736279444383,-500.0,0.00019178,2]
[348047519,1736279444392,-487.24265529,0.00019178,2]
[348047520,1736279444402,-500.0,0.00019178,2]
[348047521,1736279444411,-500.0,0.00019178,2]
[348047522,1736279444421,-500.0,0.00019178,2]
[348047523,1736279444431,-509.34737822,0.00019178,2]
[348047524,1736279444440,-500.0,0.00019178,2]
[348047525,1736279444450,-500.0,0.00019178,2]
[348047526,1736279444460,-500.0,0.00019178,2]
[348047527,1736279444471,-500.0,0.00019178,2]
[348047528,1736279444481,-500.0,0.00019178,2]
[348047529,1736279444491,-500.0,0.00019178,2]
[348047530,1736279444501,-504.76224731,0.00019178,2]
[348047531,1736279444511,-500.0,0.00019178,2]
[348047532,1736279444521,-500.0,0.00019178,2]
[348047533,1736279444531,-500.0,0.00019178,2]
[348047534,1736279444541,-500.0,0.00019178,2]
[348047535,1736279444550,-500.0,0.00019178,2]
[348047536,1736279444560,-500.0,0.00019178,2]
[348047537,1736279444576,-10821.45,0.00019178,2]
[348047538,1736279444586,-533.38831527,0.00019178,2]
[348047539,1736279444596,-500.0,0.00019178,2]
[348047540,1736279444605,-500.0,0.00019178,2]
[348047541,1736279444621,-500.0,0.00019178,2]
[348047542,1736279444631,-500.0,0.00019178,2]
[348047543,1736279444641,-457.97271268,0.00019178,2]
[348047544,1736279444651,-500.0,0.00019178,2]
[348047545,1736279444661,-500.0,0.00019178,2]
[348047546,1736279444670,-504.37506012,0.00019178,2]
[348047547,1736279444680,-500.0,0.00019178,2]
[348047548,1736279444690,-500.0,0.00019178,2]
[348047549,1736279444700,-500.0,0.00019178,2]
[348047550,1736279444710,-500.0,0.00019178,2]
[348047551,1736279444719,-500.0,0.00019178,2]
[348047552,1736279444730,-500.0,0.00019178,2]
[348047553,1736279444739,-500.0,0.00019178,2]
[348047554,1736279444749,-500.0,0.00019178,2]
[348047555,1736279444759,-338.99605407,0.00019178,2]
[348047556,1736279444768,-500.0,0.00019178,2]
[348047557,1736279444778,-500.0,0.00019178,2]
[348047558,1736279444788,-500.0,0.00019178,2]
[348047559,1736279444797,-509.60195996,0.00019178,2]
[348047560,1736279444807,-438.33739554,0.00019178,2]
[348047561,1736279444816,-500.0,0.00019178,2]
[348047562,1736279444825,-500.0,0.00019178,2]
[348047563,1736279444835,-500.0,0.00019178,2]
[348047564,1736279444844,-509.31847537,0.00019178,2]
[348047565,1736279444854,-160.66344173,0.00019178,2]
[348047566,1736279444864,-500.0,0.00019178,2]
[348047567,1736279444875,-1127.6,0.00019178,2]
[348047569,1736279444884,-500.0,0.00019178,2]
[348047571,1736279444894,-506.00996704,0.00019178,2]
[348047572,1736279444903,-500.0,0.00019178,2]
[348047574,1736279444913,-500.0,0.00019178,2]
[348047576,1736279444923,-500.0,0.00019178,2]
[348047577,1736279444932,-2564.04,0.00019178,2]
[348047578,1736279444942,-500.0,0.00019178,2]
[348047579,1736279444951,-500.0,0.00019178,2]
[348047580,1736279444961,-500.0,0.00019178,2]
[348047581,1736279444971,-500.0,0.00019178,2]
[348047582,1736279444980,-500.0,0.00019178,2]
[348047583,1736279444990,-375.36545285,0.00019178,2]
[348047584,1736279444999,-551.38933065,0.00019178,2]
[348047585,1736279445009,-422.1339163,0.00019178,2]
[348047587,1736279445019,-500.0,0.00019178,2]
[348047589,1736279445028,-500.0,0.00019178,2]
[348047590,1736279445038,-500.0,0.00019178,2]
[348047591,1736279445047,-864.91,0.00019178,2]
[348047593,1736279445056,-500.0,0.00019178,2]
[348047595,1736279445066,-185.39632152,0.00019178,2]
[348047596,1736279445076,-510.49390294,0.00019178,2]
[348047598,1736279445085,-500.0,0.00019178,2]
[348047600,1736279445095,-500.0,0.00019178,2]
[348047602,1736279445104,-211.81429719,0.00019178,2]
[348047603,1736279445115,-412.26,0.00019178,2]
[348047604,1736279445126,-500.0,0.00019178,2]
[348047605,1736279445135,-500.0,0.00019178,2]
[348047606,1736279445145,-500.0,0.00019178,2]
[348047607,1736279445155,-252.1362103,0.00019178,2]
[348047608,1736279445166,-668.98,0.00019178,2]
[348047609,1736279445176,-500.0,0.00019178,2]
[348047610,1736279445186,-695.65,0.00019178,2]
[348047611,1736279445197,-500.0,0.00019178,2]
[348047612,1736279445207,-500.0,0.00019178,2]
[348047613,1736279445217,-204.07268868,0.00019178,2]
[348047614,1736279445226,-500.0,0.00019178,2]
[348047615,1736279445236,-500.0,0.00019178,2]
[348047616,1736279445246,-500.0,0.00019178,2]
[348047617,1736279445256,-500.0,0.00019178,2]
[348047618,1736279445266,-500.0,0.00019178,2]
[348047619,1736279445276,-500.0,0.00019178,2]
[348047621,1736279445286,-2067.43,0.00019178,2]
[348047623,1736279445296,-500.0,0.00019178,2]
[348047625,1736279445306,-500.0,0.00019178,2]
[348047626,1736279445316,-500.0,0.00019178,2]
[348047627,1736279445327,-500.0,0.00019178,2]
[348047628,1736279445337,-500.0,0.00019178,2]
[348047629,1736279445347,-500.0,0.00019178,2]
[348047630,1736279445357,-500.0,0.00019178,2]
[348047631,1736279445367,-500.0,0.00019178,2]
[348047632,1736279445377,-500.0,0.00019178,2]
[348047633,1736279445386,-500.0,0.00019178,2]
[348047634,1736279445396,-500.0,0.00019178,2]
[348047635,1736279445406,-500.0,0.00019178,2]
[348047636,1736279445416,-500.0,0.00019178,2]
[348047637,1736279445425,-500.0,0.00019178,2]
[348047639,1736279445434,-500.0,0.00019178,2]
[348047641,1736279445444,-500.0,0.00019178,2]
[348047643,1736279445454,-500.0,0.00019178,2]
[348047644,1736279445463,-735.42,0.00019178,2]
[348047645,1736279445472,-500.0,0.00019178,2]
[348047646,1736279445482,-500.0,0.00019178,2]
[348047647,1736279445491,-227.08520886,0.00019178,2]
[348047648,1736279445501,-163.772567,0.00019178,2]
[348047649,1736279445511,-731.8107928,0.00019178,2]
[348047650,1736279445520,-2000.0,0.0001918,2]
[348047651,1736279445530,-302.99997879,0.0001919,2]
[348047652,1736279445539,-8096.9,0.000192,2]
[348047653,1736279445549,-3104.57,0.000192,2]
[348047654,1736279445558,-9022.34,0.000192,2]
[348047656,1736279445567,-1247.82,0.000192,2]
[348047657,1736279445577,-421.1403735,0.000192,2]
[348047658,1736279445586,-153.7491537,0.000192,2]
[348047659,1736279445596,-228.873031,0.000192,2]
[348047660,1736279445605,-153.7491537,0.000192,2]
[348047661,1736279445615,-214.6648391,0.000192,2]
[348047662,1736279445625,-531.0,0.0001935,2]
[348047663,1736279445634,-500.0,0.00019452,2]
[348047665,1736279445644,-2445.41,0.00019452,3]
[348047667,1736279445653,-500.0,0.00019452,3]
[348047668,1736279445663,-500.0,0.00019452,3]
[348047670,1736279445673,-545.08006799,0.00019452,3]
[348047672,1736279445683,-500.0,0.00019452,3]
[348047674,1736279445693,-500.0,0.00019452,3]
[348047675,1736279445703,-537.72078595,0.00019452,3]
[348047676,1736279445712,-521.89526891,0.00019452,3]
[348047677,1736279445722,-258.51280298,0.00019452,3]
[348047678,1736279445731,-500.0,0.00019452,3]
[348047679,1736279445741,-500.0,0.00019452,3]
[348047680,1736279445750,-500.0,0.00019452,3]
[348047681,1736279445760,-500.0,0.00019452,3]
[348047682,1736279445770,-500.0,0.00019452,3]
[348047683,1736279445779,-500.0,0.00019452,3]
[348047684,1736279445789,-511.32654312,0.00019452,3]
[348047685,1736279445798,-500.0,0.00019452,3]
[348047686,1736279445808,-500.0,0.00019452,3]
[348047687,1736279445817,-500.0,0.00019452,3]
[348047688,1736279445826,-559.88638412,0.00019452,2]
[348047689,1736279445949,-500.0,0.00019452,3]
[348047690,1736279445959,-500.0,0.00019452,3]
[348047691,1736279445969,-500.0,0.00019452,3]
[348047692,1736279445979,-500.0,0.00019452,3]
[348047693,1736279445989,-500.0,0.00019452,3]
[348047694,1736279445998,-540.78612317,0.00019452,3]
[348047695,1736279446009,-500.0,0.00019452,3]
[348047696,1736279446018,-500.0,0.00019452,3]
[348047697,1736279446027,-500.0,0.00019452,3]
[348047698,1736279446037,-499.15431785,0.00019452,3]
[348047699,1736279446046,-500.0,0.00019452,3]
[348047700,1736279446056,-500.0,0.00019452,3]
[348047702,1736279446066,-500.0,0.00019452,3]
[348047704,1736279446076,-584.00720817,0.00019452,3]
[348047706,1736279446085,-500.0,0.00019452,3]
[348047708,1736279446095,-500.0,0.00019452,3]
[348047709,1736279446104,-500.0,0.00019452,3]
[348047711,1736279446115,-500.0,0.00019452,3]
[348047712,1736279446127,-500.0,0.00019452,3]
[348047713,1736279446136,-397.77255188,0.00019452,3]
[348047714,1736279446146,-400.41524094,0.00019452,3]
[348047715,1736279446155,-500.0,0.00019452,3]
[348047716,1736279446165,-500.0,0.00019452,3]
[348047717,1736279446175,-500.0,0.00019452,3]
[348047718,1736279446184,-500.0,0.00019452,3]
[348047719,1736279446194,-500.0,0.00019452,3]
[348047720,1736279446204,-500.0,0.00019452,3]
[348047721,1736279446214,-500.0,0.00019452,3]
[348047722,1736279446223,-500.0,0.00019452,3]
[348047723,1736279446233,-500.0,0.00019452,3]
[348047724,1736279446243,-500.0,0.00019452,3]
[348047725,1736279446253,-500.0,0.00019452,3]
[348047726,1736279446263,-500.0,0.00019452,3]
[348047727,1736279446272,-500.0,0.00019452,3]
[348047728,1736279446282,-500.0,0.00019452,3]
[348047729,1736279446291,-500.0,0.00019452,3]
[348047731,1736279446301,-362.19452933,0.00019452,3]
[348047733,1736279446310,-500.0,0.00019452,3]
[348047734,1736279446331,-10821.45,0.00019452,3]
[348047736,1736279446340,-500.0,0.00019452,3]
[348047737,1736279446350,-500.0,0.00019452,3]
[348047738,1736279446360,-500.0,0.00019452,3]
[348047739,1736279446370,-500.0,0.00019452,3]
[348047740,1736279446380,-500.0,0.00019452,3]
[348047741,1736279446390,-500.0,0.00019452,3]
[348047742,1736279446400,-500.0,0.00019452,3]
[348047743,1736279446410,-500.0,0.00019452,3]
[348047744,1736279446420,-500.0,0.00019452,3]
[348047745,1736279446429,-500.0,0.00019452,3]
[348047746,1736279446439,-500.0,0.00019452,3]
[348047747,1736279446449,-1127.6,0.00019452,3]
[348047748,1736279446458,-500.0,0.00019452,3]
[348047749,1736279446468,-500.0,0.00019452,3]
[348047750,1736279446478,-2564.04,0.00019452,3]
[348047751,1736279446487,-500.0,0.00019452,3]
[348047752,1736279446497,-500.0,0.00019452,3]
[348047753,1736279446507,-500.0,0.00019452,3]
[348047754,1736279446517,-864.91,0.00019452,3]
[348047755,1736279446527,-500.0,0.00019452,3]
[348047756,1736279446537,-585.85919018,0.00019452,3]
[348047757,1736279446547,-500.0,0.00019452,3]
[348047758,1736279446557,-500.0,0.00019452,3]
[348047759,1736279446567,-500.0,0.00019452,3]
[348047760,1736279446577,-668.98,0.00019452,3]
[348047761,1736279446587,-695.65,0.00019452,3]
[348047762,1736279446596,-500.0,0.00019452,3]
[348047763,1736279446605,-500.0,0.00019452,3]
[348047764,1736279446614,-500.0,0.00019452,3]
[348047765,1736279446624,-500.0,0.00019452,3]
[348047766,1736279446634,-500.0,0.00019452,3]
[348047767,1736279446644,-500.0,0.00019452,3]
[348047768,1736279446654,-594.38222614,0.00019452,3]
[348047769,1736279446664,-2067.43,0.00019452,3]
[348047770,1736279446673,-500.0,0.00019452,3]
[348047771,1736279446682,-500.0,0.00019452,3]
[348047772,1736279446692,-500.0,0.00019452,3]
[348047773,1736279446701,-503.55891128,0.00019452,3]
[348047774,1736279446711,-513.09677252,0.00019452,3]
[348047775,1736279446721,-500.0,0.00019452,3]
[348047776,1736279446730,-309.21,0.00019452,3]
[348047777,1736279446740,-500.0,0.00019452,3]
[348047778,1736279446750,-500.0,0.00019452,3]
[348047779,1736279446759,-500.0,0.00019452,3]
[348047780,1736279446772,-735.42,0.00019452,3]
[348047781,1736279446782,-218.15327609,0.00019473,2]
[348047782,1736279446792,-345.14232056,0.00019473,2]
[348047783,1736279446801,-500.0,0.00019473,2]
[348047784,1736279446811,-151.0,0.000196,2]
[348047785,1736279446821,-151.0,0.000196,2]
[348047786,1736279446835,-1430.29068707,0.00019626,2]
[348047787,1736279446854,-151.0,0.000197,2]
[348047788,1736279446866,-170.9285532,0.00019716,2]
[348047789,1736279446876,-151.0,0.00019726,2]
[348047790,1736279446886,-500.0,0.00019726,2]
[348047791,1736279446896,-2445.41,0.00019726,3]
[348047792,1736279446906,-516.08,0.00019726,3]
[348047793,1736279446916,-500.0,0.00019726,3]
[348047794,1736279446925,-500.0,0.00019726,3]
[348047795,1736279446935,-464.43180156,0.00019726,3]
[348047796,1736279446944,-500.0,0.00019726,3]
[348047797,1736279446954,-500.0,0.00019726,3]
[348047798,1736279446964,-500.0,0.00019726,3]
[348047799,1736279446973,-500.0,0.00019726,3]
[348047800,1736279446983,-500.0,0.00019726,3]
[348047801,1736279446992,-500.0,0.00019726,3]
[348047802,1736279447002,-500.0,0.00019726,3]
[348047803,1736279447011,-500.0,0.00019726,3]
[348047804,1736279447021,-223.99278332,0.00019726,3]
[348047805,1736279447031,-500.0,0.00019726,3]
[348047806,1736279447040,-500.0,0.00019726,3]
[348047807,1736279447049,-500.0,0.00019726,3]
[348047808,1736279447059,-500.0,0.00019726,3]
[348047809,1736279447068,-500.0,0.00019726,3]
[348047810,1736279447078,-500.0,0.00019726,3]
[348047811,1736279447087,-500.0,0.00019726,3]
[348047812,1736279447097,-500.0,0.00019726,3]
[348047813,1736279447106,-500.0,0.00019726,3]
[348047814,1736279447119,-500.0,0.00019726,3]
[348047815,1736279447128,-500.0,0.00019726,3]
[348047816,1736279447138,-500.0,0.00019726,3]
[348047817,1736279447148,-500.0,0.00019726,3]
[348047818,1736279447158,-500.0,0.00019726,3]
[348047819,1736279447168,-475.34046984,0.00019726,3]
[348047820,1736279447178,-500.0,0.00019726,3]
[348047821,1736279447189,-496.7,0.00019726,3]
[348047822,1736279447198,-500.0,0.00019726,3]
[348047823,1736279447208,-500.0,0.00019726,3]
[348047824,1736279447217,-500.0,0.00019726,3]
[348047825,1736279447227,-10821.45,0.00019726,3]
[348047826,1736279447237,-500.0,0.00019726,3]
[348047827,1736279447247,-500.0,0.00019726,3]
[348047828,1736279447256,-500.0,0.00019726,3]
[348047829,1736279447266,-500.0,0.00019726,3]
[348047830,1736279447276,-500.0,0.00019726,3]
[348047831,1736279447286,-500.0,0.00019726,3]
[348047832,1736279447296,-500.0,0.00019726,3]
[348047833,1736279447306,-500.0,0.00019726,3]
[348047834,1736279447316,-500.0,0.00019726,3]
[348047835,1736279447327,-500.0,0.00019726,3]
[348047836,1736279447336,-500.0,0.00019726,3]
[348047837,1736279447346,-1127.6,0.00019726,3]
[348047838,1736279447356,-500.0,0.00019726,3]
[348047839,1736279447365,-500.0,0.00019726,3]
[348047840,1736279447375,-2564.04,0.00019726,3]
[348047841,1736279447384,-500.0,0.00019726,3]
[348047842,1736279447395,-500.0,0.00019726,3]
[348047843,1736279447404,-500.0,0.00019726,3]
[348047844,1736279447415,-864.91,0.00019726,3]
[348047845,1736279447425,-500.0,0.00019726,3]
[348047846,1736279447434,-500.0,0.00019726,3]
[348047847,1736279447444,-179.75,0.00019726,3]
[348047848,1736279447454,-668.98,0.00019726,3]
[348047849,1736279447464,-695.65,0.00019726,3]
[348047850,1736279447474,-500.0,0.00019726,3]
[348047851,1736279447483,-500.0,0.00019726,3]
[348047852,1736279447493,-500.0,0.00019726,3]
[348047853,1736279447503,-500.0,0.00019726,3]
[348047854,1736279447512,-500.0,0.00019726,3]
[348047855,1736279447522,-500.0,0.00019726,3]
[348047856,1736279447531,-2067.43,0.00019726,3]
[348047857,1736279447540,-436.92162774,0.00019726,3]
[348047858,1736279447550,-500.0,0.00019726,3]
[348047859,1736279447559,-293.69,0.00019726,3]
[348047860,1736279447569,-307.76634983,0.00019726,3]
[348047861,1736279447578,-500.0,0.00019726,3]
[348047862,1736279447588,-735.42,0.00019726,3]
[348047863,1736279447597,-500.0,0.00019863,7]
[348047864,1736279447606,-1000.51012601,0.0002,10]
[348047865,1736279447615,-1000.0,0.0002,20]
[348047866,1736279447625,-1000.0,0.0002,3]
[348047867,1736279447634,-8812.0,0.0002,2]
[348047868,1736279447643,-512.74,0.0002,2]
[348047869,1736279447653,-2445.41,0.0002,3]
[348047870,1736279447662,-500.0,0.0002,3]
[348047871,1736279447671,-500.0,0.0002,3]
[348047872,1736279447680,-500.0,0.0002,3]
[348047873,1736279447690,-500.0,0.0002,3]
[348047874,1736279447699,-500.0,0.0002,3]
[348047875,1736279447708,-500.0,0.0002,3]
[348047876,1736279447717,-500.0,0.0002,3]
[348047877,1736279447726,-500.0,0.0002,3]
[348047878,1736279447735,-500.0,0.0002,3]
[348047879,1736279447744,-500.0,0.0002,3]
[348047880,1736279447754,-500.0,0.0002,3]
[348047881,1736279447763,-500.0,0.0002,3]
[348047882,1736279447773,-500.0,0.0002,3]
[348047883,1736279447782,-500.0,0.0002,3]
[348047884,1736279447792,-500.0,0.0002,3]
[348047885,1736279447801,-151.0,0.0002,2]
[348047886,1736279447811,-500.0,0.0002,3]
[348047887,1736279447821,-303.44160659,0.0002,3]
[348047888,1736279447831,-289.294569,0.0002,2]
[348047889,1736279447840,-289.294569,0.0002,2]
[348047890,1736279447850,-500.0,0.0002,3]
[348047891,1736279447860,-151.0,0.0002,2]
[348047892,1736279447872,-500.0,0.0002,3]
[348047893,1736279447882,-226.29050152,0.0002,3]
[348047894,1736279447891,-500.0,0.0002,3]
[348047895,1736279447900,-500.0,0.0002,3]
[348047896,1736279447910,-500.0,0.0002,3]
[348047897,1736279447919,-10821.45,0.0002,3]
[348047898,1736279447928,-500.0,0.0002,3]
[348047899,1736279447937,-500.0,0.0002,3]
[348047900,1736279447947,-636.09639671,0.0002,3]
[348047901,1736279447956,-151.0,0.0002,2]
[348047902,1736279447965,-500.0,0.0002,3]
[348047903,1736279447975,-500.0,0.0002,3]
[348047904,1736279447985,-500.0,0.0002,3]
[348047905,1736279447994,-372.4331669,0.0002,3]
[348047906,1736279448004,-500.0,0.0002,3]
[348047907,1736279448014,-500.0,0.0002,3]
[348047908,1736279448023,-500.0,0.0002,3]
[348047909,1736279448033,-322.68848819,0.0002,3]
[348047910,1736279448042,-1127.6,0.0002,3]
[348047911,1736279448052,-500.0,0.0002,3]
[348047912,1736279448061,-500.0,0.0002,3]
[348047913,1736279448072,-2564.04,0.0002,3]
[348047914,1736279448081,-151.0,0.0002,2]
[348047915,1736279448091,-500.0,0.0002,3]
[348047916,1736279448101,-500.0,0.0002,3]
[348047917,1736279448112,-152.1827,0.0002,2]
[348047918,1736279448124,-500.0,0.0002,3]
[348047919,1736279448134,-864.91,0.0002,3]
[348047920,1736279448143,-500.0,0.0002,3]
[348047921,1736279448155,-500.0,0.0002,3]
[348047922,1736279448164,-668.98,0.0002,3]
[348047923,1736279448174,-695.65,0.0002,3]
[348047924,1736279448184,-500.0,0.0002,3]
[348047925,1736279448194,-500.0,0.0002,3]
[348047926,1736279448203,-151.0,0.0002,2]
[348047927,1736279448213,-500.0,0.0002,3]
[348047928,1736279448223,-500.0,0.0002,3]
[348047929,1736279448233,-500.0,0.0002,3]
[348047930,1736279448242,-500.0,0.0002,3]
[348047931,1736279448253,-2067.43,0.0002,3]
[348047932,1736279448263,-151.0,0.0002,2]
[348047933,1736279448272,-500.0,0.0002,3]
[348047934,1736279448283,-500.0,0.0002,3]
[348047935,1736279448292,-735.42,0.0002,3]
[348047936,1736279448302,-151.0,0.0002,2]
[348047937,1736279448311,-1000.0,0.00020021,2]
[348047938,1736279448320,-2445.41,0.00020273,3]
[348047939,1736279448330,-151.0,0.00020273,2]
[348047940,1736279448340,-151.0,0.00020273,2]
[348047941,1736279448350,-151.0,0.00020273,2]
[348047942,1736279448359,-151.0,0.00020273,2]
[348047943,1736279448369,-151.0,0.00020273,2]
[348047944,1736279448379,-259.56569,0.00020273,2]
[348047945,1736279448388,-500.0,0.00020273,3]
[348047946,1736279448398,-151.0,0.00020273,2]
[348047947,1736279448408,-151.0,0.00020273,2]
[348047948,1736279448418,-151.0,0.00020273,2]
[348047949,1736279448427,-151.773715,0.00020273,2]
[348047950,1736279448438,-500.0,0.00020273,3]
[348047951,1736279448448,-289.687998,0.00020273,2]
[348047952,1736279448457,-289.687998,0.00020273,2]
[348047953,1736279448467,-500.0,0.00020273,3]
[348047954,1736279448477,-500.0,0.00020273,3]
[348047955,1736279448487,-500.0,0.00020273,3]
[348047956,1736279448496,-500.0,0.00020273,3]
[348047957,1736279448506,-500.0,0.00020273,3]
[348047958,1736279448515,-154.57,0.00020273,3]
[348047959,1736279448525,-500.0,0.00020273,3]
[348047960,1736279448534,-500.0,0.00020273,3]
[348047961,1736279448544,-577.93542426,0.00020273,3]
[348047962,1736279448554,-500.0,0.00020273,3]
[348047963,1736279448563,-175.19,0.00020273,3]
[348047964,1736279448573,-561.63,0.00020273,3]
[348047965,1736279448582,-585.5,0.00020273,3]
[348047966,1736279448592,-500.0,0.00020273,3]
[348047967,1736279448602,-522.02,0.00020273,3]
[348047968,1736279448611,-500.0,0.00020273,3]
[348047969,1736279448621,-10821.45,0.00020273,3]
[348047970,1736279448631,-500.0,0.00020273,3]
[348047971,1736279448641,-500.0,0.00020273,3]
[348047972,1736279448652,-279.231818,0.00020273,2]
[348047973,1736279448661,-500.0,0.00020273,3]
[348047974,1736279448672,-361.95,0.00020273,3]
[348047975,1736279448681,-500.0,0.00020273,3]
[348047976,1736279448692,-279.231818,0.00020273,2]
[348047977,1736279448794,-500.0,0.00020273,3]
[348047978,1736279448817,-500.0,0.00020273,3]
[348047979,1736279448827,-500.0,0.00020273,3]
[348047980,1736279448837,-1127.6,0.00020273,3]
[348047981,1736279448846,-500.0,0.00020273,3]
[348047982,1736279448857,-261.6092454,0.00020273,3]
[348047983,1736279448867,-2564.04,0.00020273,3]
[348047984,1736279448876,-500.0,0.00020273,3]
[348047985,1736279448886,-500.0,0.00020273,3]
[348047986,1736279448895,-500.0,0.00020273,3]
[348047987,1736279448905,-500.0,0.00020273,3]
[348047988,1736279448915,-864.91,0.00020273,3]
[348047989,1736279448924,-500.0,0.00020273,3]
[348047990,1736279448933,-668.98,0.00020273,3]
[348047991,1736279448943,-695.65,0.00020273,3]
[348047992,1736279448952,-500.0,0.00020273,3]
[348047993,1736279448961,-500.0,0.00020273,3]
[348047994,1736279448970,-500.0,0.00020273,3]
[348047995,1736279448980,-500.0,0.00020273,3]
[348047996,1736279448990,-500.0,0.00020273,3]
[348047997,1736279448999,-2067.43,0.00020273,3]
[348047998,1736279449008,-500.0,0.00020273,3]
[348047999,1736279449017,-498.62,0.00020273,3]
[348048000,1736279449026,-735.42,0.00020273,3]
[348048001,1736279449035,-170.9285532,0.00020354,2]
[348048002,1736279449045,-226.261141,0.00020447,2]
[348048003,1736279449054,-187.5871744,0.00020521,2]
[348048004,1736279449062,-2445.41,0.00020547,3]
[348048005,1736279449072,-500.0,0.00020547,9]
[348048006,1736279449081,-500.0,0.00020547,3]
[348048007,1736279449090,-299.45,0.00020547,3]
[348048008,1736279449100,-500.0,0.00020547,3]
[348048009,1736279449111,-509.87891448,0.00020547,3]
[348048010,1736279449123,-301.25,0.00020547,3]
[348048011,1736279449133,-262.54180412,0.00020547,3]
[348048012,1736279449142,-500.0,0.00020547,3]
[348048013,1736279449152,-500.0,0.00020547,3]
[348048014,1736279449162,-500.0,0.00020547,3]
[348048015,1736279449171,-500.0,0.00020547,3]
[348048016,1736279449181,-10821.45,0.00020547,3]
[348048017,1736279449192,-500.0,0.00020547,3]
[348048018,1736279449202,-500.0,0.00020547,3]
[348048019,1736279449212,-500.0,0.00020547,3]
[348048020,1736279449221,-500.0,0.00020547,3]
[348048021,1736279449230,-500.0,0.00020547,3]
[348048022,1736279449240,-1127.6,0.00020547,3]
[348048023,1736279449250,-500.0,0.00020547,3]
[348048024,1736279449259,-2564.04,0.00020547,3]
[348048025,1736279449269,-236.96337614,0.00020547,3]
[348048026,1736279449280,-500.0,0.00020547,3]
[348048027,1736279449289,-500.0,0.00020547,3]
[348048028,1736279449299,-500.0,0.00020547,3]
[348048029,1736279449308,-864.91,0.00020547,3]
[348048030,1736279449318,-500.0,0.00020547,3]
[348048031,1736279449328,-668.98,0.00020547,3]
[348048032,1736279449338,-695.65,0.00020547,3]
[348048033,1736279449347,-500.0,0.00020547,3]
[348048034,1736279449356,-500.0,0.00020547,3]
[348048035,1736279449366,-500.0,0.00020547,3]
[348048036,1736279449376,-500.0,0.00020547,3]
[348048037,1736279449386,-500.0,0.00020547,3]
[348048038,1736279449395,-2067.43,0.00020547,3]
[348048039,1736279449405,-500.0,0.00020547,3]
[348048040,1736279449415,-735.42,0.00020547,3]